[Event "23rd ETCC Women 2021"]
[Site "Catez"]
[Date "2021.11.19"]
[Round "7.40"]
[White "Mayrhuber, Nikola"]
[Black "Katkov, Michelle"]
[Result "1-0"]
[ECO "E20"]
[WhiteElo "2091"]
[BlackElo "2059"]
[Annotator "ChessBase"]
[PlyCount "111"]
[EventDate "2021.11.08"]
[EventType "team-tourn"]
[EventCountry "SLO"]
[SourceTitle "playchess.com"]
[Source "ChessBase"]
[SourceQuality "1"]
[WhiteTeam "Austria"]
[BlackTeam "Israel"]
[WhiteTeamCountry "AUT"]
[BlackTeamCountry "ISR"]
[TimeControl "40/5400+30:1800+30"]

1. d4 {[%emt 0:00:03]} Nf6 {[%emt 0:00:07]} 2. c4 {[%emt 0:00:05]} e6 {[%emt 0:
00:04]} 3. Nc3 {[%emt 0:00:04]} Bb4 {[%emt 0:00:04]} 4. Bd2 {[%emt 0:00:05]} b6
{[%emt 0:00:31]} 5. f3 {[%emt 0:01:08]} c5 {[%emt 0:04:51]} 6. d5 {[%emt 0:00:
51]} Ba6 {[%emt 0:02:43]} 7. e4 {[%emt 0:07:49]} Bxc3 {[%emt 0:30:03]} 8. Bxc3
{[%emt 0:01:28]} exd5 {[%emt 0:01:14]} 9. cxd5 {[%emt 0:12:58]} Nxe4 {[%emt 0:
07:58]} 10. fxe4 {[%emt 0:05:18]} Qh4+ {[%emt 0:00:06]} 11. Kd2 {[%emt 0:15:06]
} Qf4+ {[%emt 0:02:43]} 12. Kc2 {[%emt 0:00:07]} Qxe4+ {[%emt 0:00:11]} 13. Bd3
{[%emt 0:07:59]} Qxg2+ {[%emt 0:03:21]} 14. Qe2+ {[%emt 0:01:15]} Qxe2+ {
[%emt 0:00:07]} 15. Nxe2 {[%emt 0:00:10]} Bxd3+ {[%emt 0:01:35]} 16. Kxd3 {
[%emt 0:00:09]} f6 {[%emt 0:03:00]} 17. Rhg1 {[%emt 0:02:02]} Kf7 {[%emt 0:07:
39]} 18. Raf1 {[%emt 0:00:33]} Na6 {[%emt 0:01:44]} 19. Nf4 {[%emt 0:06:35]}
Rhg8 {[%emt 0:07:45]} 20. Nh5 {[%emt 0:03:41]} d6 {[%emt 0:05:01]} 21. Bxf6 {
[%emt 0:07:03]} Nb4+ {[%emt 0:00:00]} 22. Kd2 {[%emt 0:00:47]} Nxd5 {[%emt 0:
01:18]} 23. Bxg7+ {[%emt 0:04:55]} Ke6 {[%emt 0:01:06]} 24. Nf6 {[%emt 0:04:22]
} Rxg7 {[%emt 0:03:41]} 25. Rxg7 {[%emt 0:05:50]} Nxf6 {[%emt 0:00:09]} 26.
Re1+ {[%emt 0:01:13]} Kd5 {[%emt 0:02:28]} 27. Kc2 {[%emt 0:01:58]} a6 {
[%emt 0:11:14]} 28. Rf7 {[%emt 0:00:06]} Ne4 {[%emt 0:01:23]} 29. Rxh7 {
[%emt 0:00:30]} Rf8 {[%emt 0:00:37]} 30. Rh5+ {[%emt 0:01:43]} Kd4 {[%emt 0:00:
09]} 31. Rd1+ {[%emt 0:05:39]} Ke3 {[%emt 0:01:04]} 32. Rd3+ {[%emt 0:01:28]}
Kf2 {[%emt 0:01:16]} 33. Rh4 {[%emt 0:01:11]} Re8 {[%emt 0:00:46]} 34. Rf4+ {
[%emt 0:00:47]} Kg2 {[%emt 0:00:07]} 35. h4 {[%emt 0:00:28]} Re5 {[%emt 0:00:
40]} 36. h5 {[%emt 0:00:58]} c4 {[%emt 0:00:18]} 37. Re3 {[%emt 0:01:19]} d5 {
[%emt 0:00:06]} 38. Rh4 {[%emt 0:00:37]} Kf2 {[%emt 0:00:07]} 39. Reh3 {
[%emt 0:00:48]} d4 {[%emt 0:01:07]} 40. Rh2+ {[%emt 0:00:41]} Kf3 {[%emt 0:00:
39]} 41. h6 {[%emt 0:07:19]} d3+ {[%emt 0:00:13]} 42. Kd1 {[%emt 0:05:19]} c3 {
[%emt 0:18:55]} 43. bxc3 {[%emt 0:03:49]} Rb5 {[%emt 0:00:05]} 44. R2h3+ {
[%emt 0:05:41]} Kg2 {[%emt 0:00:32]} 45. Rxd3 {[%emt 0:01:00]} Nf2+ {[%emt 0:
00:09]} 46. Kc2 {[%emt 0:01:00]} Nxd3 {[%emt 0:00:46]} 47. Kxd3 {[%emt 0:00:07]
} Rd5+ {[%emt 0:09:28]} 48. Ke4 {[%emt 0:01:20]} Ra5 {[%emt 0:03:34]} 49. c4 {
[%emt 0:01:15]} Rc5 {[%emt 0:01:26]} 50. Kd4 {[%emt 0:00:29]} Rc8 {[%emt 0:00:
17]} 51. h7 {[%emt 0:00:08]} Rh8 {[%emt 0:00:11]} 52. Kd5 {[%emt 0:00:53]} Kg3
{[%emt 0:00:12]} 53. Rh1 {[%emt 0:00:21]} Kf4 {[%emt 0:00:27]} 54. Kc6 {
[%emt 0:00:38]} b5 {[%emt 0:00:14]} 55. c5 {[%emt 0:00:25]} Ke5 {[%emt 0:01:06]
} 56. Kb7 {[%emt 0:01:50]} 1-0

[Event "23rd ETCC Women 2021"]
[Site "Catez"]
[Date "2021.11.19"]
[Round "7.41"]
[White "Cramling, Pia"]
[Black "Unuk, Laura"]
[Result "1/2-1/2"]
[ECO "B10"]
[WhiteElo "2457"]
[BlackElo "2353"]
[Annotator "ChessBase"]
[PlyCount "75"]
[EventDate "2021.11.08"]
[EventType "team-tourn"]
[EventCountry "SLO"]
[SourceTitle "playchess.com"]
[Source "ChessBase"]
[SourceQuality "1"]
[WhiteTeam "Sweden"]
[BlackTeam "Slovenia"]
[WhiteTeamCountry "SWE"]
[BlackTeamCountry "SLO"]
[TimeControl "40/5400+30:1800+30"]

1. c4 {[%emt 0:00:05]} c6 {[%emt 0:00:46]} 2. e4 {[%emt 0:00:13]} d5 {[%emt 0:
01:10]} 3. cxd5 {[%emt 0:00:16]} cxd5 {[%emt 0:00:05]} 4. exd5 {[%emt 0:00:04]}
Nf6 {[%emt 0:00:06]} 5. Qa4+ {[%emt 0:00:13]} Nbd7 {[%emt 0:00:38]} 6. Nc3 {
[%emt 0:00:05]} g6 {[%emt 0:00:30]} 7. Nf3 {[%emt 0:02:46]} Bg7 {[%emt 0:00:21]
} 8. Bc4 {[%emt 0:00:36]} O-O {[%emt 0:02:37]} 9. d3 {[%emt 0:01:10]} a6 {
[%emt 0:02:31]} 10. Qa3 {[%emt 0:01:31]} b6 {[%emt 0:02:22]} 11. O-O {[%emt 0:
23:59]} Bb7 {[%emt 0:03:14]} 12. Be3 {[%emt 0:05:51]} b5 {[%emt 0:11:39]} 13.
Bb3 {[%emt 0:00:11]} Re8 {[%emt 0:00:50]} 14. Qb4 {[%emt 0:05:09]} Nb6 {
[%emt 0:15:33]} 15. Bxb6 {[%emt 0:01:27]} Qxb6 {[%emt 0:00:05]} 16. a4 {
[%emt 0:04:53]} Red8 {[%emt 0:09:26]} 17. Qxe7 {[%emt 0:21:29]} Nxd5 {[%emt 0:
00:51]} 18. Bxd5 {[%emt 0:01:26]} Bxd5 {[%emt 0:01:43]} 19. Ng5 {[%emt 0:02:57]
} Qb7 {[%emt 0:19:07]} 20. Qxb7 {[%emt 0:02:22]} Bxb7 {[%emt 0:00:05]} 21. axb5
{[%emt 0:00:29]} axb5 {[%emt 0:00:23]} 22. Rxa8 {[%emt 0:00:31]} Bxa8 {[%emt 0:
01:20]} 23. Nxb5 {[%emt 0:06:54]} h6 {[%emt 0:03:44]} 24. Ne4 {[%emt 0:01:49]}
Bxb2 {[%emt 0:03:21]} 25. Nc5 {[%emt 0:03:47]} Bc6 {[%emt 0:03:41]} 26. Rb1 {
[%emt 0:00:52]} Ra8 {[%emt 0:01:31]} 27. h3 {[%emt 0:02:00]} Bg7 {[%emt 0:01:
43]} 28. Ne4 {[%emt 0:03:51]} Rd8 {[%emt 0:03:37]} 29. Rb3 {[%emt 0:00:57]} Be5
{[%emt 0:01:27]} 30. Nd2 {[%emt 0:01:01]} Rd5 {[%emt 0:02:03]} 31. Na3 {
[%emt 0:01:24]} Ba4 {[%emt 0:01:17]} 32. Rb4 {[%emt 0:00:20]} Bd7 {[%emt 0:04:
35]} 33. Nac4 {[%emt 0:01:29]} Bc3 {[%emt 0:01:25]} 34. Rb8+ {[%emt 0:00:47]}
Kg7 {[%emt 0:00:11]} 35. Ne4 {[%emt 0:00:29]} Rxd3 {[%emt 0:01:25]} 36. Nxc3 {
[%emt 0:00:28]} Rxc3 {[%emt 0:00:12]} 37. Ne3 {[%emt 0:00:47]} Be6 {[%emt 0:00:
32]} 38. Rb2 {[%emt 0:00:34]} 1/2-1/2

[Event "23rd ETCC Women 2021"]
[Site "Catez"]
[Date "2021.11.19"]
[Round "7.42"]
[White "Urh, Zala"]
[Black "Agrest, Inna"]
[Result "1-0"]
[ECO "E93"]
[WhiteElo "2332"]
[BlackElo "2258"]
[Annotator "ChessBase"]
[PlyCount "123"]
[EventDate "2021.11.08"]
[EventType "team-tourn"]
[EventCountry "SLO"]
[SourceTitle "playchess.com"]
[Source "ChessBase"]
[SourceQuality "1"]
[WhiteTeam "Slovenia"]
[BlackTeam "Sweden"]
[WhiteTeamCountry "SLO"]
[BlackTeamCountry "SWE"]
[TimeControl "40/5400+30:1800+30"]

1. d4 {[%emt 0:00:03]} Nf6 {[%emt 0:00:25]} 2. c4 {[%emt 0:00:06]} g6 {[%emt 0:
00:09]} 3. Nc3 {[%emt 0:00:04]} Bg7 {[%emt 0:00:05]} 4. e4 {[%emt 0:00:04]} d6
{[%emt 0:00:05]} 5. Nf3 {[%emt 0:00:03]} O-O {[%emt 0:00:10]} 6. Be2 {[%emt 0:
00:05]} Nbd7 {[%emt 0:01:12]} 7. Be3 {[%emt 0:00:38]} e5 {[%emt 0:00:27]} 8. d5
{[%emt 0:00:15]} Qe7 {[%emt 0:06:44]} 9. Nd2 {[%emt 0:01:31]} a6 {[%emt 0:09:
46]} 10. Qc2 {[%emt 0:02:27]} c6 {[%emt 0:01:57]} 11. O-O {[%emt 0:12:25]} h5 {
[%emt 0:05:42]} 12. Bg5 {[%emt 0:03:37]} Qe8 {[%emt 0:02:15]} 13. f3 {[%emt 0:
03:48]} Nh7 {[%emt 0:06:39]} 14. Be3 {[%emt 0:02:09]} c5 {[%emt 0:01:26]} 15.
a3 {[%emt 0:02:02]} f5 {[%emt 0:07:29]} 16. b4 {[%emt 0:05:30]} b6 {[%emt 0:04:
02]} 17. bxc5 {[%emt 0:01:06]} bxc5 {[%emt 0:00:50]} 18. Rab1 {[%emt 0:01:45]}
f4 {[%emt 0:02:13]} 19. Bf2 {[%emt 0:01:58]} g5 {[%emt 0:00:15]} 20. Qa4 {
[%emt 0:03:44]} Qg6 {[%emt 0:06:17]} 21. Qc6 {[%emt 0:03:35]} Rb8 {[%emt 0:05:
57]} 22. Na4 {[%emt 0:03:05]} Rxb1 {[%emt 0:02:12]} 23. Rxb1 {[%emt 0:00:27]}
g4 {[%emt 0:01:00]} 24. Nxc5 {[%emt 0:16:15]} gxf3 {[%emt 0:06:00]} 25. Bxf3 {
[%emt 0:00:47]} Nxc5 {[%emt 0:06:54]} 26. Bxc5 {[%emt 0:00:13]} Ng5 {[%emt 0:
01:52]} 27. Qxd6 {[%emt 0:04:53]} Nxf3+ {[%emt 0:04:14]} 28. Nxf3 {[%emt 0:00:
12]} Qxe4 {[%emt 0:00:59]} 29. Re1 {[%emt 0:20:24]} Qxc4 {[%emt 0:02:10]} 30.
Rxe5 {[%emt 0:00:43]} Bg4 {[%emt 0:02:44]} 31. Re7 {[%emt 0:01:41]} Qc1+ {
[%emt 0:01:44]} 32. Ne1 {[%emt 0:00:20]} Rf7 {[%emt 0:02:20]} 33. Re8+ {
[%emt 0:04:39]} Kh7 {[%emt 0:00:16]} 34. Bf2 {[%emt 0:00:33]} f3 {[%emt 0:04:
49]} 35. g3 {[%emt 0:00:12]} Qd2 {[%emt 0:01:56]} 36. Qxa6 {[%emt 0:06:03]}
Qxd5 {[%emt 0:01:44]} 37. Ra8 {[%emt 0:00:59]} Rd7 {[%emt 0:01:53]} 38. Ra7 {
[%emt 0:00:20]} Rd6 {[%emt 0:01:41]} 39. Qa4 {[%emt 0:00:31]} Re6 {[%emt 0:00:
35]} 40. Qb4 {[%emt 0:00:44]} Kh8 {[%emt 0:00:48]} 41. Ra5 {[%emt 0:13:58]} Qc6
{[%emt 0:06:44]} 42. h3 {[%emt 0:04:30]} Re4 {[%emt 0:14:42]} 43. Qb1 {[%emt 0:
07:41]} Bc3 {[%emt 0:02:18]} 44. Rc5 {[%emt 0:01:09]} Qxc5 {[%emt 0:03:35]} 45.
Qxe4 {[%emt 0:00:07]} Qxa3 {[%emt 0:00:57]} 46. hxg4 {[%emt 0:00:14]} hxg4 {
[%emt 0:01:47]} 47. Qxg4 {[%emt 0:00:46]} Qa1 {[%emt 0:01:05]} 48. Qxf3 {
[%emt 0:01:08]} Bxe1 {[%emt 0:00:48]} 49. Qf8+ {[%emt 0:00:34]} Kh7 {[%emt 0:
00:01]} 50. Qe7+ {[%emt 0:00:40]} Kg6 {[%emt 0:00:16]} 51. Qxe1 {[%emt 0:00:17]
} Qa2 {[%emt 0:00:45]} 52. Qe4+ {[%emt 0:00:28]} Kf7 {[%emt 0:00:14]} 53. Bd4 {
[%emt 0:01:13]} Qb3 {[%emt 0:02:07]} 54. Kg2 {[%emt 0:00:15]} Qa2+ {[%emt 0:00:
15]} 55. Bf2 {[%emt 0:00:12]} Qb2 {[%emt 0:00:59]} 56. g4 {[%emt 0:00:48]} Qd2
{[%emt 0:00:32]} 57. Kg3 {[%emt 0:00:36]} Qa2 {[%emt 0:00:26]} 58. Bd4 {
[%emt 0:00:44]} Kf8 {[%emt 0:00:58]} 59. g5 {[%emt 0:01:08]} Qa5 {[%emt 0:00:
53]} 60. Kg4 {[%emt 0:00:54]} Qa2 {[%emt 0:00:13]} 61. Bc5+ {[%emt 0:00:50]}
Kf7 {[%emt 0:00:26]} 62. Qh7+ {[%emt 0:00:24]} 1-0

[Event "23rd ETCC Women 2021"]
[Site "Catez"]
[Date "2021.11.19"]
[Round "7.43"]
[White "Andric, Jelena"]
[Black "Janzelj, Lara"]
[Result "0-1"]
[ECO "A26"]
[WhiteElo "2041"]
[BlackElo "2150"]
[Annotator "NA"]
[PlyCount "64"]
[EventDate "2021.11.08"]
[EventType "team-tourn"]
[EventCountry "SLO"]
[SourceTitle "playchess.com"]
[Source "ChessBase"]
[SourceQuality "1"]
[WhiteTeam "Sweden"]
[BlackTeam "Slovenia"]
[WhiteTeamCountry "SWE"]
[BlackTeamCountry "SLO"]
[TimeControl "40/5400+30:1800+30"]

1. c4 {[%emt 0:00:10]} Nf6 {[%emt 0:00:12]} 2. Nc3 {[%emt 0:02:42]} g6 {
[%emt 0:00:51]} 3. g3 {[%emt 0:04:51]} Bg7 {[%emt 0:00:50]} 4. Bg2 {[%emt 0:00:
09]} d6 {[%emt 0:00:30]} 5. Nf3 {[%emt 0:01:57]} O-O {[%emt 0:00:48]} 6. O-O {
[%emt 0:01:41]} e5 {[%emt 0:00:46]} 7. d3 {[%emt 0:01:10]} Nc6 {[%emt 0:02:38]}
8. Rb1 {[%emt 0:00:56]} a5 {[%emt 0:04:05]} 9. a3 {[%emt 0:00:43]} Ne8 {
[%emt 0:08:15]} 10. b4 {[%emt 0:06:07]} axb4 {[%emt 0:00:08]} 11. axb4 {
[%emt 0:00:07]} f5 {[%emt 0:00:53]} 12. Bg5 {[%emt 0:10:07]} Qd7 {[%emt 0:03:
33]} 13. Nd5 {[%emt 0:10:18]} h6 {[%emt 0:02:36]} 14. b5 {[%emt 0:08:19]} Nd8 {
[%emt 0:13:05]} 15. Bd2 {[%emt 0:09:54]} Ne6 {[%emt 0:05:14]} 16. Qc1 {[%emt 0:
07:01]} Kh7 {[%emt 0:00:42]} 17. Bc3 {[%emt 0:06:15]} Nf6 {[%emt 0:12:42]} 18.
Ne1 {[%emt 0:04:04]} f4 {[%emt 0:06:35]} 19. Nxf6+ {[%emt 0:06:46]} Bxf6 {
[%emt 0:02:33]} 20. Nc2 {[%emt 0:03:35]} Bg5 {[%emt 0:05:52]} 21. Bd2 {[%emt 0:
06:46]} Ra2 {[%emt 0:02:31]} 22. h4 {[%emt 0:00:42]} f3 {[%emt 0:05:15]} 23.
hxg5 {[%emt 0:03:49]} Rxc2 {[%emt 0:01:47]} 24. Qxc2 {[%emt 0:00:41]} Nd4 {
[%emt 0:00:06]} 25. Qd1 {[%emt 0:00:42]} Nxe2+ {[%emt 0:00:32]} 26. Qxe2 {
[%emt 0:00:42]} fxe2 {[%emt 0:00:04]} 27. Rfe1 {[%emt 0:00:15]} Qf5 {[%emt 0:
00:45]} 28. Rxe2 {[%emt 0:00:41]} Qxd3 {[%emt 0:00:09]} 29. Rbe1 {[%emt 0:00:
23]} Bg4 {[%emt 0:00:25]} 30. Be4 {[%emt 0:00:45]} Qd4 {[%emt 0:00:17]} 31. Re3
{[%emt 0:00:34]} Qxd2 {[%emt 0:00:12]} 32. f4 {[%emt 0:00:58]} hxg5 {[%emt 0:
00:42]} 0-1

[Event "23rd ETCC Women 2021"]
[Site "Catez"]
[Date "2021.11.19"]
[Round "7.44"]
[White "Rozman, Monika"]
[Black "Cramling Bellon, Anna"]
[Result "0-1"]
[ECO "B40"]
[WhiteElo "2112"]
[BlackElo "2035"]
[Annotator "ChessBase"]
[PlyCount "100"]
[EventDate "2021.11.08"]
[EventType "team-tourn"]
[EventCountry "SLO"]
[SourceTitle "playchess.com"]
[Source "ChessBase"]
[SourceQuality "1"]
[WhiteTeam "Slovenia"]
[BlackTeam "Sweden"]
[WhiteTeamCountry "SLO"]
[BlackTeamCountry "SWE"]
[TimeControl "40/5400+30:1800+30"]

1. e4 {[%emt 0:00:03]} c5 {[%emt 0:00:06]} 2. Nf3 {[%emt 0:00:03]} Nf6 {
[%emt 0:00:08]} 3. Nc3 {[%emt 0:00:49]} d5 {[%emt 0:00:26]} 4. exd5 {[%emt 0:
01:44]} Nxd5 {[%emt 0:00:13]} 5. Be2 {[%emt 0:02:03]} Nc6 {[%emt 0:01:57]} 6.
O-O {[%emt 0:01:15]} e6 {[%emt 0:03:30]} 7. Re1 {[%emt 0:02:30]} Be7 {[%emt 0:
01:14]} 8. Bb5 {[%emt 0:12:00]} Qc7 {[%emt 0:15:01]} 9. Nxd5 {[%emt 0:02:33]}
exd5 {[%emt 0:00:48]} 10. d4 {[%emt 0:01:57]} O-O {[%emt 0:06:13]} 11. dxc5 {
[%emt 0:01:50]} Bxc5 {[%emt 0:06:46]} 12. Qxd5 {[%emt 0:07:08]} Nb4 {[%emt 0:
10:16]} 13. Qc4 {[%emt 0:15:06]} a6 {[%emt 0:20:46]} 14. Be3 {[%emt 0:04:01]}
axb5 {[%emt 0:02:14]} 15. Qxc5 {[%emt 0:00:07]} Qxc5 {[%emt 0:00:42]} 16. Bxc5
{[%emt 0:00:07]} Nxc2 {[%emt 0:00:04]} 17. Bxf8 {[%emt 0:02:12]} Kxf8 {[%emt 0:
03:54]} 18. Rac1 {[%emt 0:03:27]} Nxe1 {[%emt 0:00:29]} 19. Nxe1 {[%emt 0:00:
08]} Bf5 {[%emt 0:07:21]} 20. Rc5 {[%emt 0:03:20]} Bd7 {[%emt 0:00:27]} 21. a3
{[%emt 0:02:00]} b4 {[%emt 0:03:21]} 22. Nc2 {[%emt 0:01:48]} bxa3 {[%emt 0:01:
33]} 23. bxa3 {[%emt 0:01:58]} Ke7 {[%emt 0:06:32]} 24. f3 {[%emt 0:00:50]} Rc8
{[%emt 0:01:42]} 25. Rxc8 {[%emt 0:01:45]} Bxc8 {[%emt 0:00:04]} 26. Kf2 {
[%emt 0:00:08]} Kd6 {[%emt 0:00:08]} 27. Ke3 {[%emt 0:00:41]} Kc5 {[%emt 0:01:
09]} 28. Ke4 {[%emt 0:02:09]} Kc4 {[%emt 0:03:35]} 29. Nd4 {[%emt 0:06:35]} Bd7
{[%emt 0:00:08]} 30. g4 {[%emt 0:00:46]} Ba4 {[%emt 0:03:30]} 31. f4 {[%emt 0:
05:40]} Kc3 {[%emt 0:00:16]} 32. Ke5 {[%emt 0:08:20]} Kb2 {[%emt 0:00:06]} 33.
Nf5 {[%emt 0:00:13]} Kxa3 {[%emt 0:00:54]} 34. Nxg7 {[%emt 0:00:50]} Bc2 {
[%emt 0:01:00]} 35. Ne8 {[%emt 0:02:13]} b5 {[%emt 0:00:05]} 36. Nd6 {[%emt 0:
02:30]} b4 {[%emt 0:00:07]} 37. Kd4 {[%emt 0:02:36]} b3 {[%emt 0:00:59]} 38.
Kc3 {[%emt 0:00:10]} Bd1 {[%emt 0:00:50]} 39. Nc4+ {[%emt 0:00:31]} Ka2 {
[%emt 0:00:14]} 40. g5 {[%emt 0:01:16]} Be2 {[%emt 0:00:50]} 41. Nd2 {[%emt 0:
34:45]} b2 {[%emt 0:03:56]} 42. h4 {[%emt 0:00:00]} b1=Q 43. Nxb1 {[%emt 0:00:
00]} Kxb1 {[%emt 0:08:14]} 44. Kd4 {[%emt 0:00:00]} Kc2 {[%emt 0:01:49]} 45.
Ke5 {[%emt 0:00:00]} Kd3 {[%emt 0:01:11]} 46. f5 {[%emt 0:00:00]} Bh5 {[%emt 0:
01:16]} 47. Kf4 {[%emt 0:00:00]} Kd4 {[%emt 0:01:37]} 48. g6 {[%emt 0:00:00]}
hxg6 {[%emt 0:01:25]} 49. Kg5 {[%emt 0:00:00]} Ke5 {[%emt 0:00:51]} 50. fxg6 {
[%emt 0:00:00]} fxg6 {[%emt 0:00:08]} 0-1

[Event "23rd ETCC Women 2021"]
[Site "Catez"]
[Date "2021.11.19"]
[Round "7.45"]
[White "Atalik, Ekaterina"]
[Black "Georgescu, Lena"]
[Result "1/2-1/2"]
[ECO "E04"]
[WhiteElo "2430"]
[BlackElo "2262"]
[Annotator "NA"]
[PlyCount "87"]
[EventDate "2021.11.08"]
[EventType "team-tourn"]
[EventCountry "SLO"]
[SourceTitle "playchess.com"]
[Source "ChessBase"]
[SourceQuality "1"]
[WhiteTeam "Turkey"]
[BlackTeam "Switzerland"]
[WhiteTeamCountry "TUR"]
[BlackTeamCountry "SUI"]
[TimeControl "40/5400+30:1800+30"]

1. d4 {[%emt 0:00:04]} Nf6 {[%emt 0:00:04]} 2. Nf3 {[%emt 0:00:20]} d5 {
[%emt 0:00:06]} 3. g3 {[%emt 0:00:16]} c5 {[%emt 0:00:04]} 4. c4 {[%emt 0:00:
40]} cxd4 {[%emt 0:03:50]} 5. Bg2 {[%emt 0:00:51]} e6 {[%emt 0:13:05]} 6. O-O {
[%emt 0:04:58]} dxc4 {[%emt 0:03:22]} 7. Qxd4 {[%emt 0:09:59]} Be7 {[%emt 0:01:
48]} 8. Qxc4 {[%emt 0:02:06]} Nc6 {[%emt 0:01:40]} 9. Nc3 {[%emt 0:00:59]} O-O
{[%emt 0:00:55]} 10. Bf4 {[%emt 0:03:01]} Bd7 {[%emt 0:03:01]} 11. e4 {[%emt 0:
05:25]} Rc8 {[%emt 0:02:59]} 12. Qe2 {[%emt 0:01:00]} Qa5 {[%emt 0:03:46]} 13.
e5 {[%emt 0:13:54]} Nd5 {[%emt 0:03:33]} 14. Nxd5 {[%emt 0:06:01]} exd5 {
[%emt 0:00:29]} 15. Rfd1 {[%emt 0:01:54]} Be6 {[%emt 0:08:37]} 16. a3 {[%emt 0:
00:45]} h6 {[%emt 0:03:06]} 17. b4 {[%emt 0:00:54]} Qb6 {[%emt 0:02:45]} 18. h4
{[%emt 0:12:49]} a6 {[%emt 0:06:08]} 19. Rd2 {[%emt 0:04:45]} Rfd8 {[%emt 0:02:
00]} 20. Rad1 {[%emt 0:00:35]} d4 {[%emt 0:06:12]} 21. Kh2 {[%emt 0:00:51]} Bb3
{[%emt 0:01:35]} 22. Bh3 {[%emt 0:02:51]} Bxd1 {[%emt 0:01:05]} 23. Qxd1 {
[%emt 0:00:35]} Ra8 {[%emt 0:02:28]} 24. e6 {[%emt 0:00:41]} f6 {[%emt 0:03:19]
} 25. h5 {[%emt 0:01:23]} a5 {[%emt 0:00:14]} 26. Nh4 {[%emt 0:03:03]} axb4 {
[%emt 0:06:48]} 27. Nf5 {[%emt 0:03:18]} Ra5 {[%emt 0:00:14]} 28. Qg4 {[%emt 0:
02:26]} Rxf5 {[%emt 0:00:34]} 29. Qxf5 {[%emt 0:00:05]} Bf8 {[%emt 0:07:38]}
30. Qg6 {[%emt 0:02:18]} Ne7 {[%emt 0:00:21]} 31. Qf7+ {[%emt 0:00:17]} Kh8 {
[%emt 0:00:34]} 32. axb4 {[%emt 0:03:53]} Qxb4 {[%emt 0:00:47]} 33. Bg2 {
[%emt 0:05:13]} f5 {[%emt 0:02:19]} 34. Be3 {[%emt 0:03:31]} Kh7 {[%emt 0:04:
03]} 35. Rxd4 {[%emt 0:03:04]} Rxd4 {[%emt 0:00:02]} 36. Qxf8 {[%emt 0:00:13]}
Rd1 {[%emt 0:03:40]} 37. Bf4 {[%emt 0:03:05]} Qc5 {[%emt 0:02:39]} 38. Be3 {
[%emt 0:00:34]} Qb4 {[%emt 0:00:09]} 39. Qf7 {[%emt 0:00:26]} b6 {[%emt 0:01:
48]} 40. Bh3 {[%emt 0:00:42]} Qe4 {[%emt 0:01:17]} 41. Bg2 {[%emt 0:01:15]} Qb4
{[%emt 0:03:21]} 42. Qf8 {[%emt 0:19:53]} Qd6 {[%emt 0:03:26]} 43. Bxh6 {
[%emt 0:06:13]} gxh6 {[%emt 0:01:34]} 44. Qf7+ {[%emt 0:00:12]} 1/2-1/2

[Event "23rd ETCC Women 2021"]
[Site "Catez"]
[Date "2021.11.19"]
[Round "7.46"]
[White "Hakimifard, Ghazal"]
[Black "Caglar, Sila"]
[Result "1/2-1/2"]
[ECO "B83"]
[WhiteElo "2267"]
[BlackElo "2250"]
[Annotator "ChessBase"]
[PlyCount "144"]
[EventDate "2021.11.08"]
[EventType "team-tourn"]
[EventCountry "SLO"]
[SourceTitle "playchess.com"]
[Source "ChessBase"]
[SourceQuality "1"]
[WhiteTeam "Switzerland"]
[BlackTeam "Turkey"]
[WhiteTeamCountry "SUI"]
[BlackTeamCountry "TUR"]
[TimeControl "40/5400+30:1800+30"]

1. e4 {[%emt 0:00:03]} c5 {[%emt 0:00:04]} 2. Nf3 {[%emt 0:00:04]} e6 {[%emt 0:
00:05]} 3. d4 {[%emt 0:00:05]} cxd4 {[%emt 0:00:04]} 4. Nxd4 {[%emt 0:00:04]}
Nc6 {[%emt 0:00:05]} 5. Nc3 {[%emt 0:00:07]} Qc7 {[%emt 0:00:04]} 6. Be2 {
[%emt 0:00:10]} Nf6 {[%emt 0:00:18]} 7. O-O {[%emt 0:00:28]} Be7 {[%emt 0:00:
30]} 8. Be3 {[%emt 0:00:20]} d6 {[%emt 0:01:13]} 9. Kh1 {[%emt 0:01:00]} O-O {
[%emt 0:00:39]} 10. f4 {[%emt 0:00:11]} Nxd4 {[%emt 0:03:00]} 11. Bxd4 {
[%emt 0:00:10]} b6 {[%emt 0:03:59]} 12. e5 {[%emt 0:03:07]} dxe5 {[%emt 0:07:
11]} 13. fxe5 {[%emt 0:08:35]} Nd7 {[%emt 0:02:32]} 14. Nb5 {[%emt 0:06:33]}
Qb8 {[%emt 0:01:50]} 15. Bd3 {[%emt 0:02:42]} Bb7 {[%emt 0:06:06]} 16. Qg4 {
[%emt 0:06:07]} Nxe5 {[%emt 0:12:49]} 17. Bxh7+ {[%emt 0:01:46]} Kxh7 {[%emt 0:
00:01]} 18. Qh5+ {[%emt 0:00:07]} Kg8 {[%emt 0:00:03]} 19. Bxe5 {[%emt 0:00:05]
} Qc8 {[%emt 0:00:21]} 20. Qg4 {[%emt 0:24:10]} f6 {[%emt 0:05:25]} 21. Bd6 {
[%emt 0:01:12]} Qd7 {[%emt 0:02:31]} 22. Bxe7 {[%emt 0:01:07]} Qxe7 {[%emt 0:
00:09]} 23. Rae1 {[%emt 0:00:16]} Rae8 {[%emt 0:01:36]} 24. Nd4 {[%emt 0:01:28]
} Bc8 {[%emt 0:01:41]} 25. Qh4 {[%emt 0:06:14]} Qb4 {[%emt 0:04:13]} 26. Re4 {
[%emt 0:01:51]} Qxb2 {[%emt 0:01:13]} 27. Qh5 {[%emt 0:01:32]} e5 {[%emt 0:02:
28]} 28. Rfe1 {[%emt 0:08:14]} Be6 {[%emt 0:06:22]} 29. Nxe6 {[%emt 0:04:54]}
Rxe6 {[%emt 0:00:06]} 30. Qf5 {[%emt 0:01:22]} Qxa2 {[%emt 0:06:26]} 31. Rh4 {
[%emt 0:00:39]} Kf7 {[%emt 0:01:46]} 32. Rh7 {[%emt 0:03:20]} Rg8 {[%emt 0:02:
15]} 33. Rd1 {[%emt 0:00:08]} Rd6 {[%emt 0:02:07]} 34. Rf1 {[%emt 0:01:47]} Qc4
{[%emt 0:03:27]} 35. h3 {[%emt 0:02:42]} a5 {[%emt 0:02:30]} 36. Rf3 {[%emt 0:
03:24]} Qe6 {[%emt 0:08:07]} 37. Qh5+ {[%emt 0:02:10]} Kf8 {[%emt 0:01:53]} 38.
Rc3 {[%emt 0:02:39]} Rc6 {[%emt 0:03:43]} 39. Rd3 {[%emt 0:02:52]} Rd6 {
[%emt 0:05:26]} 40. Rc3 {[%emt 0:01:09]} e4 {[%emt 0:04:00]} 41. Qe2 {[%emt 0:
32:07]} Rd5 {[%emt 0:31:46]} 42. Rh5 {[%emt 0:00:00]} Rxh5 {[%emt 0:00:00]} 43.
Qxh5 {[%emt 0:00:00]} Ke7 {[%emt 0:00:00]} 44. Rc7+ {[%emt 0:00:00]} Kd6 {
[%emt 0:00:00]} 45. Rc3 {[%emt 0:00:00]} Qe5 {[%emt 0:00:00]} 46. Qd1+ {
[%emt 0:00:00]} Ke7 {[%emt 0:00:00]} 47. Rb3 {[%emt 0:00:00]} Rd8 {[%emt 0:00:
00]} 48. Qg4 {[%emt 0:00:00]} f5 {[%emt 0:00:00]} 49. Qh4+ {[%emt 0:00:00]} Qf6
{[%emt 0:00:00]} 50. Qh5 {[%emt 0:00:00]} Qa1+ {[%emt 0:00:00]} 51. Kh2 {
[%emt 0:00:00]} Qe5+ {[%emt 0:00:00]} 52. Kh1 {[%emt 0:00:00]} Rd6 {[%emt 0:00:
00]} 53. c4 {[%emt 0:00:00]} Qf4 {[%emt 0:00:00]} 54. Rb5 {[%emt 0:00:00]} Rf6
{[%emt 0:02:33]} 55. Rb1 {[%emt 0:00:00]} e3 {[%emt 0:00:33]} 56. c5 {[%emt 0:
00:00]} Qe4 {[%emt 0:02:52]} 57. Re1 {[%emt 0:00:26]} bxc5 {[%emt 0:01:28]} 58.
Qg5 {[%emt 0:00:00]} f4 {[%emt 0:01:26]} 59. Qxg7+ {[%emt 0:00:25]} Ke6 {
[%emt 0:00:24]} 60. Qg8+ {[%emt 0:00:34]} Ke5 {[%emt 0:00:37]} 61. Qe8+ {
[%emt 0:02:28]} Re6 {[%emt 0:00:24]} 62. Qh8+ {[%emt 0:00:30]} Kd5 {[%emt 0:00:
35]} 63. Qa8+ {[%emt 0:01:16]} Kd4 {[%emt 0:00:30]} 64. Rd1+ {[%emt 0:01:23]}
Kc3 {[%emt 0:00:32]} 65. Qxa5+ {[%emt 0:01:01]} Kc2 {[%emt 0:00:28]} 66. Re1 {
[%emt 0:02:46]} e2 {[%emt 0:00:31]} 67. Qxc5+ {[%emt 0:00:29]} Kd2 {[%emt 0:00:
25]} 68. Qc1+ {[%emt 0:01:21]} Kd3 {[%emt 0:00:05]} 69. Qa3+ {[%emt 0:00:07]}
Kd4 {[%emt 0:00:18]} 70. Qb2+ {[%emt 0:00:56]} Kd3 {[%emt 0:00:20]} 71. Qa3+ {
[%emt 0:00:10]} Kd4 {[%emt 0:00:48]} 72. Qb2+ {[%emt 0:00:05]} Kd3 {[%emt 0:00:
57]} 1/2-1/2